[Event "Titled Tuesday Blitz November 07 Early 2023"]
[White "missponyo10"]
[Black "Vigoa Apecheche, Yanira"]
[BlackFideId "3507041"]
[WhiteElo "2019"]
[BlackElo "2365"]
[Result "1-0"]
[Round "7"]
[TimeControl "180+1"]
[Date "2023.11.07"]
[WhiteClock "0:00:35"]
[BlackClock "0:00:40"]
[Board "167"]

1. e4 {[%clk 0:03:00]}  c5 {[%clk 0:02:59]} 2. Nf3 {[%clk 0:02:59]}  a6 {[%clk 0:02:59]} 3. d4 {[%clk 0:02:58]}  cxd4 {[%clk 0:02:58]} 4. Nxd4 {[%clk 0:02:59]}  Nf6 {[%clk 0:02:58]} 5. Nc3 {[%clk 0:02:59]}  e5 {[%clk 0:02:59]} 6. Nf3 {[%clk 0:02:58]}  Bb4 {[%clk 0:02:58]} 7. Bd3 {[%clk 0:02:56]}  d5 {[%clk 0:02:56]} 8. Nd2 {[%clk 0:02:17]}  dxe4 {[%clk 0:02:45]} 9. Ndxe4 {[%clk 0:02:13]}  Nxe4 {[%clk 0:02:44]} 10. Bxe4 {[%clk 0:02:14]}  Qxd1+ {[%clk 0:02:40]} 11. Kxd1 {[%clk 0:02:14]}  Bxc3 {[%clk 0:02:41]} 12. bxc3 {[%clk 0:02:15]}  O-O {[%clk 0:02:41]} 13. Bb2 {[%clk 0:02:12]}  f5 {[%clk 0:02:36]} 14. Bd5+ {[%clk 0:02:07]}  Kh8 {[%clk 0:02:36]} 15. c4 {[%clk 0:02:08]}  Nd7 {[%clk 0:02:27]} 16. Re1 {[%clk 0:02:06]}  e4 {[%clk 0:02:24]} 17. Re3 {[%clk 0:02:04]}  Nf6 {[%clk 0:02:10]} 18. Bxf6 {[%clk 0:02:03]}  Rxf6 {[%clk 0:02:08]} 19. Rb1 {[%clk 0:02:00]}  Rd6 {[%clk 0:02:03]} 20. Ke2 {[%clk 0:01:58]}  Rb8 {[%clk 0:01:47]} 21. Reb3 {[%clk 0:01:55]}  b5 {[%clk 0:01:43]} 22. a4 {[%clk 0:01:52]}  Bd7 {[%clk 0:01:39]} 23. axb5 {[%clk 0:01:41]}  axb5 {[%clk 0:01:39]} 24. Bf7 {[%clk 0:01:37]}  Rdb6 {[%clk 0:01:24]} 25. cxb5 {[%clk 0:01:32]}  Rxb5 {[%clk 0:01:23]} 26. Rxb5 {[%clk 0:01:31]}  Rxb5 {[%clk 0:01:18]} 27. Rxb5 {[%clk 0:01:31]}  Bxb5+ {[%clk 0:01:18]} 28. Ke3 {[%clk 0:01:31]}  g6 {[%clk 0:01:18]} 29. Bd5 {[%clk 0:01:26]}  Kg7 {[%clk 0:01:17]} 30. c4 {[%clk 0:01:18]}  Ba4 {[%clk 0:01:14]} 31. Kd4 {[%clk 0:01:14]}  Kf6 {[%clk 0:01:13]} 32. c5 {[%clk 0:01:09]}  Ke7 {[%clk 0:01:13]} 33. Ke5 {[%clk 0:01:08]}  Bb5 {[%clk 0:01:10]} 34. c6 {[%clk 0:01:04]}  Ba6 {[%clk 0:01:09]} 35. Bg8 {[%clk 0:01:01]}  h6 {[%clk 0:01:07]} 36. Be6 {[%clk 0:00:54]}  Kd8 {[%clk 0:01:05]} 37. Kf6 {[%clk 0:00:53]}  Bf1 {[%clk 0:01:01]} 38. g3 {[%clk 0:00:52]}  Kc7 {[%clk 0:00:55]} 39. Bd7 {[%clk 0:00:51]}  Bh3 {[%clk 0:00:51]} 40. Kxg6 {[%clk 0:00:49]}  Kd6 {[%clk 0:00:46]} 41. Kxh6 {[%clk 0:00:46]}  Bg4 {[%clk 0:00:40]} 42. Kg5 {[%clk 0:00:46]}  Bh3 {[%clk 0:00:40]} 43. Bxf5 {[%clk 0:00:44]}  Bg2 {[%clk 0:00:40]} 44. Bd7 {[%clk 0:00:43]}  Kc7 {[%clk 0:00:39]} 45. h4 {[%clk 0:00:42]}  Kd6 {[%clk 0:00:40]} 46. h5 {[%clk 0:00:42]}  Ke7 {[%clk 0:00:40]} 47. h6 {[%clk 0:00:41]}  e3 {[%clk 0:00:41]} 48. fxe3 {[%clk 0:00:40]}  Be4 {[%clk 0:00:41]} 49. Kf4 {[%clk 0:00:37]}  Bh7 {[%clk 0:00:41]} 50. Bf5 {[%clk 0:00:35]}  Bg8 {[%clk 0:00:40]} 51. h7 {[%clk 0:00:35]} 1-0


[Site "https://www.chess.com"]

[Event "Titled Tuesday Blitz November 07 Early 2023"]
[White "Tharushi, T H D Niklesha"]
[Black "Belov, Alexei"]
[WhiteFideId "9918264"]
[BlackFideId "4128206"]
[WhiteElo "2259"]
[BlackElo "2587"]
[Result "1-0"]
[Round "7"]
[TimeControl "180+1"]
[Date "2023.11.07"]
[WhiteClock "0:00:12"]
[BlackClock "0:00:08"]
[Board "169"]

1. e4 {[%clk 0:03:00]}  e6 {[%clk 0:02:59]} 2. d4 {[%clk 0:03:00]}  d5 {[%clk 0:02:58]} 3. Nc3 {[%clk 0:03:00]}  Nf6 {[%clk 0:02:58]} 4. exd5 {[%clk 0:02:59]}  exd5 {[%clk 0:02:58]} 5. Bd3 {[%clk 0:03:00]}  c5 {[%clk 0:02:57]} 6. dxc5 {[%clk 0:02:57]}  Bxc5 {[%clk 0:02:56]} 7. Nf3 {[%clk 0:02:58]}  O-O {[%clk 0:02:56]} 8. Bg5 {[%clk 0:02:58]}  Nc6 {[%clk 0:02:49]} 9. Bxf6 {[%clk 0:02:51]}  Qxf6 {[%clk 0:02:48]} 10. Nxd5 {[%clk 0:02:44]}  Qxb2 {[%clk 0:02:46]} 11. O-O {[%clk 0:02:43]}  h6 {[%clk 0:02:41]} 12. Re1 {[%clk 0:02:32]}  Bg4 {[%clk 0:02:36]} 13. h3 {[%clk 0:02:28]}  Bh5 {[%clk 0:02:32]} 14. Rb1 {[%clk 0:02:16]}  Qxa2 {[%clk 0:02:31]} 15. Rxb7 {[%clk 0:02:15]}  Nd4 {[%clk 0:02:26]} 16. Ne7+ {[%clk 0:01:56]}  Bxe7 {[%clk 0:02:24]} 17. Rexe7 {[%clk 0:01:57]}  Nxf3+ {[%clk 0:02:09]} 18. gxf3 {[%clk 0:01:56]}  Qa5 {[%clk 0:01:52]} 19. Qc1 {[%clk 0:01:48]}  Bxf3 {[%clk 0:01:44]} 20. Rbc7 {[%clk 0:01:38]}  Rac8 {[%clk 0:01:19]} 21. Rxa7 {[%clk 0:01:36]}  Qd5 {[%clk 0:01:08]} 22. Qf4 {[%clk 0:01:34]}  Bd1 {[%clk 0:00:47]} 23. Be4 {[%clk 0:00:55]}  Qh5 {[%clk 0:00:44]} 24. Re5 {[%clk 0:00:39]}  Qxh3 {[%clk 0:00:40]} 25. Bf5 {[%clk 0:00:39]}  Qc3 {[%clk 0:00:30]} 26. Bxc8 {[%clk 0:00:38]}  Qxc8 {[%clk 0:00:30]} 27. Ree7 {[%clk 0:00:37]}  Bh5 {[%clk 0:00:26]} 28. c4 {[%clk 0:00:35]}  Qh3 {[%clk 0:00:19]} 29. Qg3 {[%clk 0:00:21]}  Qf5 {[%clk 0:00:18]} 30. Re5 {[%clk 0:00:15]}  Qb1+ {[%clk 0:00:18]} 31. Kh2 {[%clk 0:00:16]}  Bg6 {[%clk 0:00:18]} 32. c5 {[%clk 0:00:15]}  Be4 {[%clk 0:00:16]} 33. Qg1 {[%clk 0:00:15]}  Qc2 {[%clk 0:00:15]} 34. Rae7 {[%clk 0:00:13]}  Bg6 {[%clk 0:00:15]} 35. Qg2 {[%clk 0:00:11]}  Rc8 {[%clk 0:00:13]} 36. Re8+ {[%clk 0:00:11]}  Rxe8 {[%clk 0:00:13]} 37. Rxe8+ {[%clk 0:00:12]}  Kh7 {[%clk 0:00:14]} 38. c6 {[%clk 0:00:12]}  Be4 {[%clk 0:00:12]} 39. Qxe4+ {[%clk 0:00:12]}  Qxe4 {[%clk 0:00:08]} 40. Rxe4 {[%clk 0:00:12]} 1-0


[Site "https://www.chess.com"]

[Event "Titled Tuesday Blitz November 07 Early 2023"]
[White "EvgenyBurmakin"]
[Black "Sviridova, Vlada"]
[BlackFideId "24109606"]
[WhiteElo "2362"]
[BlackElo "2215"]
[Result "1-0"]
[Round "7"]
[TimeControl "180+1"]
[Date "2023.11.07"]
[WhiteClock "0:00:42"]
[BlackClock "0:00:00"]
[Board "171"]

1. e4 {[%clk 0:03:00]}  e6 {[%clk 0:02:59]} 2. d4 {[%clk 0:03:00]}  d5 {[%clk 0:03:00]} 3. Nd2 {[%clk 0:03:01]}  c5 {[%clk 0:02:53]} 4. exd5 {[%clk 0:02:58]}  Qxd5 {[%clk 0:02:52]} 5. Ngf3 {[%clk 0:02:58]}  cxd4 {[%clk 0:02:52]} 6. Bc4 {[%clk 0:02:58]}  Qd7 {[%clk 0:02:51]} 7. O-O {[%clk 0:02:56]}  Nc6 {[%clk 0:02:51]} 8. Nb3 {[%clk 0:02:54]}  a6 {[%clk 0:02:51]} 9. Re1 {[%clk 0:02:53]}  Nf6 {[%clk 0:02:29]} 10. Nbxd4 {[%clk 0:02:40]}  Nxd4 {[%clk 0:02:28]} 11. Nxd4 {[%clk 0:02:41]}  Be7 {[%clk 0:02:03]} 12. Be3 {[%clk 0:02:14]}  O-O {[%clk 0:01:26]} 13. Qf3 {[%clk 0:02:12]}  Qc7 {[%clk 0:01:04]} 14. Bb3 {[%clk 0:01:55]}  Rb8 {[%clk 0:01:01]} 15. Rad1 {[%clk 0:01:42]}  Rd8 {[%clk 0:00:35]} 16. Bf4 {[%clk 0:01:24]}  Bd6 {[%clk 0:00:35]} 17. Bxd6 {[%clk 0:01:23]}  Rxd6 {[%clk 0:00:32]} 18. Qg3 {[%clk 0:01:11]}  Rd7 {[%clk 0:00:22]} 19. Qxc7 {[%clk 0:01:04]}  Rxc7 {[%clk 0:00:23]} 20. Nb5 {[%clk 0:01:00]}  Rd7 {[%clk 0:00:22]} 21. Nd6 {[%clk 0:00:56]}  b5 {[%clk 0:00:00]} 22. h3 {[%clk 0:00:42]} 1-0


[Site "https://www.chess.com"]

[Event "Titled Tuesday Blitz November 07 Early 2023"]
[White "kingapolak"]
[Black "Skaric, Djuro"]
[BlackFideId "934569"]
[WhiteElo "2174"]
[BlackElo "2335"]
[Result "1-0"]
[Round "7"]
[TimeControl "180+1"]
[Date "2023.11.07"]
[WhiteClock "0:00:04"]
[BlackClock "0:01:17"]
[Board "172"]

1. e4 {[%clk 0:03:00]}  d6 {[%clk 0:03:00]} 2. d4 {[%clk 0:02:58]}  g6 {[%clk 0:03:01]} 3. Nc3 {[%clk 0:02:57]}  Bg7 {[%clk 0:03:02]} 4. f3 {[%clk 0:02:56]}  Nf6 {[%clk 0:03:03]} 5. Be3 {[%clk 0:02:56]}  O-O {[%clk 0:03:03]} 6. Qd2 {[%clk 0:02:56]}  Nc6 {[%clk 0:03:03]} 7. O-O-O {[%clk 0:02:56]}  e5 {[%clk 0:03:03]} 8. Nge2 {[%clk 0:02:54]}  Nh5 {[%clk 0:03:01]} 9. d5 {[%clk 0:02:40]}  Ne7 {[%clk 0:03:00]} 10. g4 {[%clk 0:02:39]}  Nf4 {[%clk 0:02:58]} 11. Nxf4 {[%clk 0:02:39]}  exf4 {[%clk 0:02:58]} 12. Bxf4 {[%clk 0:02:40]}  f5 {[%clk 0:02:59]} 13. gxf5 {[%clk 0:02:40]}  gxf5 {[%clk 0:02:59]} 14. Bg5 {[%clk 0:02:40]}  Qd7 {[%clk 0:02:56]} 15. Rg1 {[%clk 0:02:36]}  Ng6 {[%clk 0:02:45]} 16. h4 {[%clk 0:02:34]}  Kh8 {[%clk 0:02:44]} 17. h5 {[%clk 0:02:34]}  Ne5 {[%clk 0:02:44]} 18. h6 {[%clk 0:02:31]}  Bf6 {[%clk 0:02:43]} 19. Bxf6+ {[%clk 0:02:20]}  Rxf6 {[%clk 0:02:43]} 20. Be2 {[%clk 0:01:55]}  a6 {[%clk 0:02:29]} 21. f4 {[%clk 0:01:45]}  Ng6 {[%clk 0:02:28]} 22. Rdf1 {[%clk 0:01:29]}  Qe7 {[%clk 0:02:25]} 23. Bd3 {[%clk 0:01:23]}  Bd7 {[%clk 0:02:14]} 24. Re1 {[%clk 0:01:13]}  Qf8 {[%clk 0:02:10]} 25. e5 {[%clk 0:01:12]}  dxe5 {[%clk 0:01:58]} 26. fxe5 {[%clk 0:01:13]}  Rb6 {[%clk 0:01:58]} 27. e6 {[%clk 0:01:11]}  Be8 {[%clk 0:01:56]} 28. Ref1 {[%clk 0:01:04]}  f4 {[%clk 0:01:52]} 29. Bxg6 {[%clk 0:00:59]}  Bxg6 {[%clk 0:01:52]} 30. Qd4+ {[%clk 0:01:00]}  Kg8 {[%clk 0:01:51]} 31. Rxf4 {[%clk 0:00:57]}  Qxh6 {[%clk 0:01:50]} 32. Kb1 {[%clk 0:00:50]}  Rd8 {[%clk 0:01:40]} 33. Qe5 {[%clk 0:00:26]}  Qg7 {[%clk 0:01:30]} 34. Rf6 {[%clk 0:00:19]}  Kh8 {[%clk 0:01:23]} 35. Rgf1 {[%clk 0:00:13]}  Rg8 {[%clk 0:01:18]} 36. e7 {[%clk 0:00:08]}  Rxf6 {[%clk 0:01:17]} 37. Rxf6 {[%clk 0:00:07]}  Be8 {[%clk 0:01:17]} 38. a3 {[%clk 0:00:05]}  h6 {[%clk 0:01:17]} 39. Rxh6# {[%clk 0:00:04]} 1-0


[Site "https://www.chess.com"]

[Event "Titled Tuesday Blitz November 07 Early 2023"]
[White "Shapiro, Daniel"]
[Black "DonCiao"]
[WhiteFideId "2001780"]
[WhiteElo "2318"]
[BlackElo "2140"]
[Result "1-0"]
[Round "7"]
[TimeControl "180+1"]
[Date "2023.11.07"]
[WhiteClock "0:00:06"]
[BlackClock "0:00:02"]
[Board "173"]

1. d4 {[%clk 0:03:00]}  Nf6 {[%clk 0:02:59]} 2. c4 {[%clk 0:02:59]}  g6 {[%clk 0:02:59]} 3. Nc3 {[%clk 0:02:58]}  d5 {[%clk 0:02:59]} 4. Nf3 {[%clk 0:02:57]}  Bg7 {[%clk 0:02:56]} 5. Qb3 {[%clk 0:02:57]}  dxc4 {[%clk 0:02:55]} 6. Qxc4 {[%clk 0:02:58]}  O-O {[%clk 0:02:55]} 7. e4 {[%clk 0:02:58]}  a6 {[%clk 0:02:55]} 8. Qa4 {[%clk 0:02:54]}  c5 {[%clk 0:02:45]} 9. dxc5 {[%clk 0:02:50]}  Nbd7 {[%clk 0:02:33]} 10. c6 {[%clk 0:02:30]}  Nc5 {[%clk 0:02:15]} 11. Qb4 {[%clk 0:02:21]}  Nd3+ {[%clk 0:01:36]} 12. Bxd3 {[%clk 0:02:14]}  Qxd3 {[%clk 0:01:37]} 13. cxb7 {[%clk 0:02:09]}  Bxb7 {[%clk 0:01:37]} 14. Qxb7 {[%clk 0:02:03]}  Rab8 {[%clk 0:01:34]} 15. Qa7 {[%clk 0:01:43]}  Nxe4 {[%clk 0:01:24]} 16. Nxe4 {[%clk 0:01:21]}  Qxe4+ {[%clk 0:01:23]} 17. Qe3 {[%clk 0:01:20]}  Qb4+ {[%clk 0:01:14]} 18. Bd2 {[%clk 0:01:19]}  Qxb2 {[%clk 0:01:12]} 19. O-O {[%clk 0:01:17]}  e6 {[%clk 0:01:02]} 20. a4 {[%clk 0:01:15]}  Rfd8 {[%clk 0:01:00]} 21. Ba5 {[%clk 0:01:08]}  Rd5 {[%clk 0:00:56]} 22. Bc7 {[%clk 0:01:03]}  Rb3 {[%clk 0:00:50]} 23. Qc1 {[%clk 0:00:53]}  Qxa1 {[%clk 0:00:48]} 24. Qxa1 {[%clk 0:00:26]}  Bxa1 {[%clk 0:00:47]} 25. Rxa1 {[%clk 0:00:27]}  Ra3 {[%clk 0:00:42]} 26. Rb1 {[%clk 0:00:17]}  Rxa4 {[%clk 0:00:42]} 27. Be5 {[%clk 0:00:16]}  Rd8 {[%clk 0:00:37]} 28. h4 {[%clk 0:00:16]}  h6 {[%clk 0:00:34]} 29. Bf6 {[%clk 0:00:16]}  Rc8 {[%clk 0:00:33]} 30. Ne5 {[%clk 0:00:14]}  Rf4 {[%clk 0:00:29]} 31. Be7 {[%clk 0:00:13]}  Rf5 {[%clk 0:00:28]} 32. Bd6 {[%clk 0:00:13]}  a5 {[%clk 0:00:23]} 33. Rb7 {[%clk 0:00:12]}  Rc1+ {[%clk 0:00:19]} 34. Kh2 {[%clk 0:00:11]}  Rxf2 {[%clk 0:00:18]} 35. Rb8+ {[%clk 0:00:11]}  Kg7 {[%clk 0:00:16]} 36. Nd7 {[%clk 0:00:09]}  Rcc2 {[%clk 0:00:14]} 37. Be5+ {[%clk 0:00:07]}  f6 {[%clk 0:00:13]} 38. Nxf6 {[%clk 0:00:07]}  Rxg2+ {[%clk 0:00:11]} 39. Kh3 {[%clk 0:00:06]}  Kf7 {[%clk 0:00:07]} 40. Rb7+ {[%clk 0:00:05]}  Kf8 {[%clk 0:00:02]} 41. Bd6# {[%clk 0:00:06]} 1-0


[Site "https://www.chess.com"]

[Event "Titled Tuesday Blitz November 07 Early 2023"]
[White "LeoWin2012"]
[Black "katharinareinecke"]
[WhiteElo "2275"]
[BlackElo "1928"]
[Result "1-0"]
[Round "7"]
[TimeControl "180+1"]
[Date "2023.11.07"]
[WhiteClock "0:01:10"]
[BlackClock "0:00:06"]
[Board "175"]

1. e4 {[%clk 0:02:58]}  c6 {[%clk 0:02:59]} 2. d4 {[%clk 0:02:57]}  d5 {[%clk 0:02:59]} 3. e5 {[%clk 0:02:53]}  Bf5 {[%clk 0:02:58]} 4. Bd3 {[%clk 0:02:52]}  Bxd3 {[%clk 0:02:56]} 5. Qxd3 {[%clk 0:02:53]}  Qa5+ {[%clk 0:02:47]} 6. Bd2 {[%clk 0:02:49]}  Qa6 {[%clk 0:02:47]} 7. Qg3 {[%clk 0:02:43]}  e6 {[%clk 0:02:32]} 8. Ne2 {[%clk 0:02:40]}  Ne7 {[%clk 0:02:29]} 9. Bb4 {[%clk 0:02:33]}  Nf5 {[%clk 0:02:20]} 10. Qc3 {[%clk 0:02:33]}  Bxb4 {[%clk 0:02:05]} 11. Qxb4 {[%clk 0:02:33]}  Nd7 {[%clk 0:02:01]} 12. Nd2 {[%clk 0:02:23]}  c5 {[%clk 0:01:55]} 13. dxc5 {[%clk 0:02:22]}  Nxe5 {[%clk 0:01:39]} 14. Nd4 {[%clk 0:02:20]}  Nxd4 {[%clk 0:01:35]} 15. Qxd4 {[%clk 0:02:21]}  Nc6 {[%clk 0:01:32]} 16. Qxg7 {[%clk 0:02:18]}  Ke7 {[%clk 0:01:10]} 17. Qg5+ {[%clk 0:02:16]}  Kd7 {[%clk 0:01:07]} 18. Qf6 {[%clk 0:02:13]}  Raf8 {[%clk 0:01:01]} 19. Nf3 {[%clk 0:02:11]}  Rhg8 {[%clk 0:00:57]} 20. a3 {[%clk 0:02:04]}  Rg6 {[%clk 0:00:53]} 21. Qf4 {[%clk 0:02:02]}  e5 {[%clk 0:00:40]} 22. Qf5+ {[%clk 0:01:55]}  Kc7 {[%clk 0:00:27]} 23. O-O-O {[%clk 0:01:50]}  e4 {[%clk 0:00:21]} 24. Qxd5 {[%clk 0:01:40]}  exf3 {[%clk 0:00:19]} 25. gxf3 {[%clk 0:01:36]}  Rd8 {[%clk 0:00:18]} 26. Qxf7+ {[%clk 0:01:34]}  Kc8 {[%clk 0:00:13]} 27. Qf5+ {[%clk 0:01:33]}  Kb8 {[%clk 0:00:13]} 28. Qf4+ {[%clk 0:01:32]}  Ka8 {[%clk 0:00:12]} 29. Qc7 {[%clk 0:01:31]}  Rgg8 {[%clk 0:00:11]} 30. Rd6 {[%clk 0:01:20]}  Qe2 {[%clk 0:00:10]} 31. Rhd1 {[%clk 0:01:17]}  Rxd6 {[%clk 0:00:08]} 32. cxd6 {[%clk 0:01:18]}  Qxf2 {[%clk 0:00:08]} 33. d7 {[%clk 0:01:18]}  Qe3+ {[%clk 0:00:07]} 34. Kb1 {[%clk 0:01:18]}  Qxf3 {[%clk 0:00:07]} 35. d8=Q+ {[%clk 0:01:11]}  Nb8 {[%clk 0:00:06]} 36. Qcxb8# {[%clk 0:01:10]} 1-0


[Site "https://www.chess.com"]

[Event "Titled Tuesday Blitz November 07 Early 2023"]
[White "Musalov, Ruslan"]
[Black "Hartikainen, Jarmo"]
[WhiteFideId "4141490"]
[BlackFideId "503134"]
[WhiteElo "2391"]
[BlackElo "2181"]
[Result "1-0"]
[Round "7"]
[TimeControl "180+1"]
[Date "2023.11.07"]
[WhiteClock "0:01:42"]
[BlackClock "0:00:00"]
[Board "176"]

1. Nf3 {[%clk 0:03:00]}  Nf6 {[%clk 0:02:59]} 2. g3 {[%clk 0:03:01]}  g6 {[%clk 0:02:59]} 3. Bg2 {[%clk 0:03:02]}  Bg7 {[%clk 0:03:00]} 4. O-O {[%clk 0:03:03]}  O-O {[%clk 0:03:00]} 5. d4 {[%clk 0:03:04]}  d5 {[%clk 0:03:01]} 6. c4 {[%clk 0:03:04]}  c5 {[%clk 0:03:01]} 7. cxd5 {[%clk 0:03:04]}  cxd4 {[%clk 0:03:01]} 8. Nxd4 {[%clk 0:03:04]}  Nxd5 {[%clk 0:03:01]} 9. Nb3 {[%clk 0:03:04]}  Nb6 {[%clk 0:02:58]} 10. Nc3 {[%clk 0:03:04]}  Nc6 {[%clk 0:02:53]} 11. Be3 {[%clk 0:03:00]}  Be6 {[%clk 0:02:43]} 12. Nc5 {[%clk 0:02:59]}  Qc8 {[%clk 0:02:01]} 13. Nxe6 {[%clk 0:02:57]}  Qxe6 {[%clk 0:02:01]} 14. Qb3 {[%clk 0:02:56]}  Qxb3 {[%clk 0:01:48]} 15. axb3 {[%clk 0:02:57]}  Rfd8 {[%clk 0:01:08]} 16. Rfd1 {[%clk 0:02:53]}  Rxd1+ {[%clk 0:00:59]} 17. Rxd1 {[%clk 0:02:54]}  Rd8 {[%clk 0:00:54]} 18. Ra1 {[%clk 0:02:54]}  Nc8 {[%clk 0:00:45]} 19. Bxc6 {[%clk 0:02:43]}  bxc6 {[%clk 0:00:45]} 20. Bxa7 {[%clk 0:02:44]}  Rd2 {[%clk 0:00:36]} 21. Ne4 {[%clk 0:01:46]}  Rxb2 {[%clk 0:00:31]} 22. Be3 {[%clk 0:01:44]}  Nd6 {[%clk 0:00:16]} 23. Ra8+ {[%clk 0:01:43]}  Bf8 {[%clk 0:00:15]} 24. Bh6 {[%clk 0:01:43]}  Rb1+ {[%clk 0:00:10]} 25. Kg2 {[%clk 0:01:42]}  Ne8 {[%clk 0:00:00]} 26. Rxe8 {[%clk 0:01:42]} 1-0


[Site "https://www.chess.com"]

[Event "Titled Tuesday Blitz November 07 Early 2023"]
[White "Smirnov, Timofey"]
[Black "Fajdetic, Hrvoje"]
[WhiteFideId "24176427"]
[BlackFideId "14501945"]
[WhiteElo "2174"]
[BlackElo "2332"]
[Result "1-0"]
[Round "7"]
[TimeControl "180+1"]
[Date "2023.11.07"]
[WhiteClock "0:00:27"]
[BlackClock "0:00:00"]
[Board "177"]

1. d4 {[%clk 0:03:00]}  e6 {[%clk 0:02:50]} 2. Bf4 {[%clk 0:02:57]}  f5 {[%clk 0:02:49]} 3. e3 {[%clk 0:02:56]}  Nf6 {[%clk 0:02:49]} 4. Nf3 {[%clk 0:02:55]}  b6 {[%clk 0:02:49]} 5. Be2 {[%clk 0:02:47]}  Bb7 {[%clk 0:02:48]} 6. h3 {[%clk 0:02:46]}  Bd6 {[%clk 0:02:47]} 7. Ne5 {[%clk 0:02:38]}  O-O {[%clk 0:02:43]} 8. O-O {[%clk 0:02:35]}  Nc6 {[%clk 0:02:33]} 9. c4 {[%clk 0:02:29]}  Ne4 {[%clk 0:02:16]} 10. f3 {[%clk 0:02:17]}  Bxe5 {[%clk 0:02:09]} 11. dxe5 {[%clk 0:02:14]}  Nc5 {[%clk 0:02:09]} 12. Nc3 {[%clk 0:02:08]}  Qe7 {[%clk 0:01:22]} 13. a3 {[%clk 0:02:07]}  a5 {[%clk 0:01:14]} 14. Nb5 {[%clk 0:02:06]}  Rfc8 {[%clk 0:01:12]} 15. Qc2 {[%clk 0:01:47]}  a4 {[%clk 0:01:10]} 16. Rfd1 {[%clk 0:01:36]}  g5 {[%clk 0:00:40]} 17. Bh2 {[%clk 0:01:35]}  Nb3 {[%clk 0:00:31]} 18. Rab1 {[%clk 0:01:34]}  Qc5 {[%clk 0:00:25]} 19. Kh1 {[%clk 0:01:24]}  Nxe5 {[%clk 0:00:20]} 20. Bxe5 {[%clk 0:01:16]}  Qxe5 {[%clk 0:00:21]} 21. Rxd7 {[%clk 0:01:16]}  Bc6 {[%clk 0:00:18]} 22. Rdd1 {[%clk 0:00:57]}  Bxb5 {[%clk 0:00:17]} 23. cxb5 {[%clk 0:00:58]}  Nc5 {[%clk 0:00:14]} 24. b4 {[%clk 0:00:46]}  axb3 {[%clk 0:00:13]} 25. Qc1 {[%clk 0:00:40]}  Rd8 {[%clk 0:00:12]} 26. Rxd8+ {[%clk 0:00:34]}  Rxd8 {[%clk 0:00:12]} 27. Bc4 {[%clk 0:00:35]}  Kf7 {[%clk 0:00:03]} 28. Bxb3 {[%clk 0:00:33]}  Rd3 {[%clk 0:00:00]} 29. e4 {[%clk 0:00:27]} 1-0


[Site "https://www.chess.com"]

[Event "Titled Tuesday Blitz November 07 Early 2023"]
[White "Rose, Felix"]
[Black "Vila Dupla, Aurelio"]
[WhiteFideId "5105722"]
[BlackFideId "2203383"]
[WhiteElo "2310"]
[BlackElo "2163"]
[Result "0-1"]
[Round "7"]
[TimeControl "180+1"]
[Date "2023.11.07"]
[WhiteClock "0:00:00"]
[BlackClock "0:00:46"]
[Board "178"]

1. e4 {[%clk 0:03:00]}  c5 {[%clk 0:02:59]} 2. Nf3 {[%clk 0:03:00]}  d6 {[%clk 0:03:00]} 3. d4 {[%clk 0:03:00]}  cxd4 {[%clk 0:03:00]} 4. Nxd4 {[%clk 0:03:01]}  Nf6 {[%clk 0:03:00]} 5. Nc3 {[%clk 0:03:02]}  g6 {[%clk 0:03:01]} 6. Be3 {[%clk 0:03:02]}  Bg7 {[%clk 0:03:01]} 7. f3 {[%clk 0:03:03]}  O-O {[%clk 0:03:02]} 8. Qd2 {[%clk 0:03:03]}  Nc6 {[%clk 0:03:02]} 9. O-O-O {[%clk 0:03:04]}  Nxd4 {[%clk 0:03:03]} 10. Bxd4 {[%clk 0:03:04]}  Be6 {[%clk 0:03:04]} 11. h4 {[%clk 0:03:03]}  Qa5 {[%clk 0:03:03]} 12. Kb1 {[%clk 0:02:59]}  Rfc8 {[%clk 0:03:02]} 13. h5 {[%clk 0:02:56]}  Rxc3 {[%clk 0:02:50]} 14. Qxc3 {[%clk 0:02:56]}  Qxa2+ {[%clk 0:02:50]} 15. Kc1 {[%clk 0:02:56]}  Bh6+ {[%clk 0:02:50]} 16. Be3 {[%clk 0:02:55]}  Rc8 {[%clk 0:02:40]} 17. Qd4 {[%clk 0:02:45]}  Bxe3+ {[%clk 0:02:24]} 18. Qxe3 {[%clk 0:02:44]}  Qa1+ {[%clk 0:02:24]} 19. Kd2 {[%clk 0:02:45]}  Qxb2 {[%clk 0:02:25]} 20. Bd3 {[%clk 0:02:45]}  Qb4+ {[%clk 0:02:11]} 21. Ke2 {[%clk 0:02:41]}  Nxh5 {[%clk 0:02:09]} 22. Kf2 {[%clk 0:02:20]}  Qc5 {[%clk 0:02:05]} 23. Ra1 {[%clk 0:02:15]}  a6 {[%clk 0:02:01]} 24. Rhb1 {[%clk 0:02:13]}  Qe5 {[%clk 0:01:43]} 25. Ra4 {[%clk 0:01:36]}  Qg3+ {[%clk 0:01:40]} 26. Kg1 {[%clk 0:01:31]}  Nf4 {[%clk 0:01:39]} 27. Qd2 {[%clk 0:00:00]}  Bh3 {[%clk 0:00:46]} 0-1


[Site "https://www.chess.com"]